{"text_format":"1","workbook":"xlsx","n_sheets":2,"sheets":["Лист1","Лист2"],"not_rendered":{"charts":0,"images":1,"macros":1,"external_links":0,"defined_names":0,"comments":0,"pivot_tables":0},"unopened":[],"bounds":{"document_bytes":16777216,"sheet_cells":100000,"rows_first":2000,"rows_last":500,"rows_between":2000,"halvings":0,"cell_chars":16384,"cell_head_chars":4096},"cells_cut":0,"cells_raw":0,"read":"whole","date_system":"1900"}

{"sheet":"Лист1","index":0,"n_rows":33,"n_cols":18,"rows_kept":33,"cut":false,"hidden":false,"merged":[]}
["Москва","Казань","Тольятти","Уренгой","Астрахань","Курск","Орел","Воркута"]
["Клип ","XENO V Refill ","Dia Gloss ","Протравочный гель ","Herculite Ultra Refill ","3M Adper Single Bond 2 ","ASH Rubber Dam ","\"Травекс",null,null,"Кмпл1",{"$f":"A3","v":"Клип Ф "},{"$f":"C5","v":"Дентин "},{"$f":"A9","v":"3М Adper"},{"$f":"E3","v":"Cavalite "},{"$f":"B6","v":"Унирест "},{"$f":"E4","v":"Point 4 "},{"$f":"A18","v":"Fuji VIII "}]
["Клип Ф ","Кмпл1Кмпл1Кмпл1Кмпл1Кмпл1Кмпл1Кмпл1XP BOND  Refill ","3M Vitremer ","Протравочный гель ","Cavalite ","3M RelyX Ceramic Primer (3M Scotchbond Ceramic Primer) ","ASH для Аш Раббер Дам ","Призмафил ",null,null,"Кмпл1",{"$f":"D4","v":"Клип Ф "},{"$f":"A6","v":"Дентин "},{"$f":"A10","v":"3М Adper"},{"$f":"G5","v":"Cavalite "},{"$f":"E8","v":"Унирест "},{"$f":"E5","v":"Point 4 "},{"$f":"G19","v":"Fuji VIII "}]
["Septo","Xeno III ","Exa Composite ","Клип Ф ","Point 4 ","3M Vitremer ","OptiDam Anterior Refill ","Праймер",null,null,"Кмпл1",{"$f":"B11","v":"Клип Ф "},{"$f":"C6","v":"Дентин "},{"$f":"D10","v":"3М Adper"},{"$f":"H8","v":"Cavalite "},{"$f":"B13","v":"Унирест "},{"$f":"B7","v":"Point 4 "},{"$f":"C21","v":"Fuji VIII "}]
["Cimpat N ","Optibond Solo Plus ","Дентин ","Призмафил ","Point 4 ","\"Травекс","Cavalite ","Призма Адгезив ",null,null,"Кмпл1",{"$f":"G17","v":"Клип Ф "},{"$f":"G6","v":"Дентин "},{"$f":"F10","v":"3М Adper"},{"$f":"C10","v":"Cavalite "},{"$f":"E20","v":"Унирест "},{"$f":"A20","v":"Point 4 "},{"$f":"H24","v":"Fuji VIII "}]
["Дентин ","Унирест ","Дентин ","Праймер","Призмафил ","Призмафил ","Дентин ","3M Vitrebond ",null,null,"Кмпл1",{"$f":"H22","v":"Клип Ф "},{"$f":"H7","v":"Дентин "},{"$f":"A11","v":"3М Adper"},{"$f":"D12","v":"Cavalite "},{"$f":"E21","v":"Унирест "},{"$f":"C20","v":"Point 4 "},{"$f":"D27","v":"Fuji VIII "}]
["Softcrack ","Point 4 ","Exa Dental ","Призма Адгезив ","Premise Syringe Standart Kit ","Праймер","SoftClamp ","Дентин ",null,null,"Кмпл1"]
["Softcrack ","OptiBond Solo Plus Bottle Kit ","DiaGloss RA Composite Kit ","Cimpat N ","Унирест ","Призма Адгезив ","OptiDam Intro Kit Posterior ","Cavalite ",null,null,"Кмпл1"]
["3М Adper","Дентин ","Composite Finishing Kit ","3M Vitrebond ","Premise Flowable ","3M Vitrebond ","OptiDam Intro Kit Anterior ","Дентин ",null,null,"Кмпл1"]
["3М Adper","Протравочный гель ","Cavalite ","3М Adper","Premise Flowable Kit ","3М Adper","Шаблон для Раббер Дам.","OptiBond FL ",null,null,"Кмпл1"]
["3М Adper","Клип Ф ","Softcrack ","Timeline ","Premise Flowable Assorted Kit ","Dycal Standart Pack ","Septocalcine ultra ","OptiBond Solo Plus Bottle Kit ",null,null,"Кмпл1"]
["3М Adper","\"Травекс","Orthodontic Burs Starter Kit ","Cavalite ","3М Adper","Дентин ","Кальцевит ","Gluma Comfort Bond Assort ",null,null,"Кмпл1"]
["Дентин ","Унирест ","OptiBond FL ","Life ","Charisma ","Softcrack ","3М Adper","Протравочный гель ",null,null,"Кмпл1"]
["3M Filtek Silorane самопротравливающий праймер ","Праймер","Denture Adjustment Kit HP ","OptiGuard Kit ","Charisma + Gluma Comfort Bond ","Softcrack ","Глассин Бейз ","Протравочный гель ",null,null,"Кмпл1"]
["Дентин ","Cavalite ","Porcelain Veneer Kit ","OptiGuard Refill ","Charisma ","Протравочный гель ","Кальципульпин/Кальципульпин F ","Призма Адгезив ",null,null,"Кмпл1"]
["3M Scotchbond ","3M Vitrebond ","Cerapol ","Calcipulpe ","Фиссулайт LC ","Протравочный гель ","Силидонт 2 ","3М Adper",null,null,"Кмпл1"]
["3M Scotchbond ","3M Vitrebond ","Amalgam Polishing Kit ","Septocalcine ultra ","Призмафил ","\"Травекс","Клип Ф ","Завеса для Раббер Дам.",null,null,"Кмпл1"]
["Fuji VIII ","Dycal Standart Pack ","Cavalite ","Кальцевит ","Cavalite ","Призмафил ","BaseLine ","Ash \"С\" для Раббер Дам ",null,null,"Кмпл1"]
["3M Adper Single Bond 2 ","Дентин ","Flexi Snap assortment ","Кальцесил ","Призмафил","Праймер","Fuji VIII ","Рамка для Раббер Дам.",null,null,"Кмпл1"]
["Point 4 ","Softcrack ","Point 4 ","Глассин Бейз ","Унирест ","Призма Адгезив ","Fuji IX ","Щипцы для установки кламмеров Раббер Дам.",null,null,"Кмпл1"]
["Prime&Bond NT Refill ","Softcrack ","Fuji VIII ","Кальципульпин/Кальципульпин F ","Унирест ","3M Vitrebond ","Беладонт ","Palodent Complete Kit ",null,null,"Кмпл1"]
["Prime&Bond NT ","3М Adper","Enhance Finishing Discs ","Силидонт 2 ","Унирест ","3M Vitrebond ","Point 4 ","Клип Ф ",null,null,"Кмпл1"]
["Prime&Bond NT ","3М Adper","Enhance Finishing Cups ","Унифас","Унирест ","Dycal Standart Pack ","Palodent ","Palodent ",null,null,"Кмпл1"]
["XENO V Refill ","3М Adper","Enhance Finishing Points ","BaseLine ","Бейзлайнер (Ionosit Baseliner) ","Timeline ","Матрицы прозрачные цервикальные.","Fuji VIII ",null,null,"Кмпл1"]
["XP BOND  Refill ","3М Adper","Enhance Polishing Cups ","Клип Ф ","3M Vitremer НАБОР ","Cavalite ","Stopstrip ","Матрицы прозрачные цервикальные.",null,null,"Кмпл1"]
["Xeno III ","3M Filtek Silorane Адгезив ","PoGo Caps ","Fuji IX ","3M Vitremer ","Life ","Клип Ф ","Stopstrip ",null,null,"Кмпл1"]
["Optibond Solo Plus ","3M Filtek Silorane самопротравливающий праймер ","PoGo Point ","Fuji VIII ","3M Vitremer ","OptiGuard Kit ","Striproll ","Stopstrip Refill ",null,null,"Кмпл1"]
["OptiBond FL Kit ","3M Filtek Silorane Адгезивная система: Праймер и Бонд ","PoGo диски ","Белацин ","3M Vitremer ","OptiGuard Refill ","Transparent Strips ","Striproll ",null,null,"Кмпл1"]
["OptiBond FL ","3M Scotchbond ","OptiDisc ","Цемион АРХ ","3M","Fuji VIII ","SuperMat Assortment ","Transparent Strips ",null,null,"Кмпл1"]
["OptiBond Solo Plus Bottle Kit ","3M Scotchbond ","OptiDisс General Ki ","Цемион (ПХ, РХ) ","3М Ketac","Septocalcine ultra ","Adapt ","SuperMat Assortment ",null,null,"Кмпл1"]
["Gluma Comfort Bond Assort ","3M Scotchbond ","OptiDisc Assorted Kit ","Силицин Плюс ","Fuji LC ","Кальцевит ","Матрицы прозрачные цервикальные.","Fuji VIII ",null,null,"Кмпл1"]
["Комплектация:","Клип Ф ","Дентин ","3М Adper","Cavalite ","Унирест ","Point 4 ","Fuji VIII "]
["Количество:",5]

{"sheet":"Лист2","index":1,"n_rows":0,"n_cols":0,"rows_kept":0,"cut":false,"hidden":false,"merged":[]}